Workbook

Sheet Planilha (hidden)
D1: Ministério da Integração Nacional
D2: Companhia de Desenvolvimento dos Vales do São Francisco e do Parnaíba
D3: 1ª Superintendência Regional da CODEVASF - 1ª SR
B4: LOCAL: | C4: PASSAGEM MOLHADA RIO SÃO LAMRBEERTO - COMUNIDADE ABÓBORAS | J4: OUTUBRO / 2017
B5: DATA BASE: SINAPI SETEMBRO/2017 SETOP JULHO/2017
B6: PRAZO DE EXECUÇÃO: 180 dias
B7: ITEM | C7: FONTE | D7: DISCRIMINAÇÃO | E7: UNID. | F7: QUANT. | G7: PREÇO UNIT. (R$) | I7: PREÇO TOTAL (R$) | K7: ='BDI-Serviços'!D33 -> 27.56 | L7: ='BDI-Fornecimento'!D34 -> 16.89
G8: S/ BDI | H8: C/ BDI | I8: S/ BDI | J8: C/ BDI
B9: OBRAS CIVIS - EDIFICAÇÕES
B10: 1 | C10: SINAPI /SETOP | D10: SERVIÇOS PRELIMINARES | E10: BDI = | F10: =K7 -> 27.56 | I10: =SUM(I11:I14) -> 5204.45 | J10: =SUM(J11:J14) -> 6638.44
B11: 1.1 | C11: CPU | D11: MOBILIZAÇÃO/DESMOBILIZAÇÃO DE EQUIPAMENTOS E PESSOAL | E11: gl | F11: 1 | G11: 2100 | H11: =ROUND(($K$7/100+1)*G11,2) -> 2678.76 | I11: =ROUND(G11*F11,2) -> 2100 | J11: =ROUND(H11*F11,2) -> 2678.76 | M11: 1ª Superintendência Regional da CODEVASF - 1ª SR
B12: 1.2 | C12: CPU | D12: ADMINISTRAÇÃO LOCAL | E12: mês | F12: 1 | G12: 2000 | H12: =ROUND(($K$7/100+1)*G12,2) -> 2551.2 | I12: =ROUND(G12*F12,2) -> 2000 | J12: =ROUND(H12*F12,2) -> 2551.2
B13: 1.3 | C13: 74077/003 | D13: LOCACAO CONVENCIONAL DE OBRA, ATRAVÉS DE GABARITO DE TABUAS CORRIDAS PONTALETADAS, COM REAPROVEITAMENTO DE 3 VEZES. | E13: m² | F13: 128 | G13: 5.09 | H13: =ROUND(($K$7/100+1)*G13,2) -> 6.49 | I13: =ROUND(G13*F13,2) -> 651.52 | J13: =ROUND(H13*F13,2) -> 830.72
B14: 1.4 | C14: 74209/001 | D14: PLACA DE OBRA EM CHAPA DE ACO GALVANIZADO | E14: m² | F14: 1.5 | G14: 301.95 | H14: =ROUND(($K$7/100+1)*G14,2) -> 385.17 | I14: =ROUND(G14*F14,2) -> 452.93 | J14: =ROUND(H14*F14,2) -> 577.76 | M14: =1.5*3 -> 4.5
B15: 2 | C15: SINAPI /SETOP | D15: ESCAVAÇÃO E REATERRO | I15: =SUM(I16:I17) -> 793.54 | J15: =SUM(J16:J17) -> 1012.19
B16: 2.1 | C16: TER-ESC-035 | D16: ESCAVAÇÃO MANUAL DE VALAS H <= 1,50 M | E16: M³ | F16: 3.2 | G16: 46.38 | H16: =ROUND(($K$7/100+1)*G16,2) -> 59.16 | I16: =ROUND(G16*F16,2) -> 148.42 | J16: =ROUND(H16*F16,2) -> 189.31
B17: 2.2 | C17: 73964/006 | D17: REATERRO DE VALA COM COMPACTAÇÃO MANUAL | E17: M³ | F17: 16 | G17: 40.32 | H17: =ROUND(($K$7/100+1)*G17,2) -> 51.43 | I17: =ROUND(G17*F17,2) -> 645.12 | J17: =ROUND(H17*F17,2) -> 822.88
B18: 3 | C18: SINAPI /SETOP | D18: ANCORAGEM | E18: BDI = | F18: =K7 -> 27.56 | I18: =SUM(I19:I21) -> 3770.08 | J18: =SUM(J19:J21) -> 4808.49
B19: 3.1 | C19: MERCADO | D19: FUROS EM ROCHA H=1M | E19: Unid. | F19: 43 | G19: 50 | H19: =ROUND(($K$7/100+1)*G19,2) -> 63.78 | I19: =ROUND(G19*F19,2) -> 2150 | J19: =ROUND(H19*F19,2) -> 2742.54 | L19: =4*0.2*1*4 -> 3.2
B20: 3.2 | C20: EST-ANC-005 | D20: ANCORAGEM DE BARRAS DE AÇO , COM RESINA BASE DE POLIÉSTER | E20: DM3 | F20: 21.11 | G20: 51.36 | H20: =ROUND(($K$7/100+1)*G20,2) -> 65.51 | I20: =ROUND(G20*F20,2) -> 1084.21 | J20: =ROUND(H20*F20,2) -> 1382.92 | L20: =5*4*0.4*2 -> 16
B21: 3.3 | C21: 92797 | D21: CORTE E DOBRA DE AÇO CA-50, DIÂMETRO DE 20,0 MM, UTILIZADO EM ESTRUTURAS DIVERSAS, EXCETO LAJES. AF_12/2015 | E21: KG | F21: 159.96 | G21: 3.35 | H21: 4.27 | I21: 535.87 | J21: 683.03
B22: 4 | C22: SINAPI /SETOP | D22: ESTRUTURA Concreto/forma | I22: =SUM(I23:I25) -> 48091.79 | J22: =SUM(J23:J25) -> 61345.6 | L22: =F24+#REF!+#REF! -> 
B23: 4.1 | C23: 92726 | D23: CONCRETAGEM DE VIGAS E LAJES, FCK=20 MPA, PARA LAJES MACIÇAS OU NERVURADAS COM USO DE BOMBA EM EDIFICAÇÃO COM ÁREA MÉDIA DE LAJES MAIOR QUE 20 M² - LANÇAMENTO, ADENSAMENTO E ACABAMENTO. AF_12/2015 (lage de regularização) | E23: M³ | F23: 38.8 | G23: 313.76 | H23: =ROUND(($K$7/100+1)*G23,2) -> 400.23 | I23: =ROUND(G23*F23,2) -> 12173.89 | J23: =ROUND(H23*F23,2) -> 15528.92
B24: 4.2 | C24: EST-FOR-010 | D24: FORMA E DESFORMA DE COMPENSADO RESINADO ESPESSURA 10 MM, EXCLUSIVE ESCORAMENTO (3X) (laje de regularização) | E24: M2 | F24: 146.4 | G24: 66.59 | H24: 84.94 | I24: 9748.78 | J24: 12435.22 | M24: =F23+#REF!+#REF! -> 
B25: 4.3 | C25: FUN-CON-005 | D25: CONCRETO CICLÓPICO 1:4:8 COM 30% DE PEDRA DE MÃO | E25: M3 | F25: 98.61 | G25: 265.38 | H25: 338.52 | I25: 26169.12 | J25: 33381.46 | M25: =J29/374.7 -> 19.32906325
B26: 5 | C26: SINAPI /SETOP | D26: ESTRUTURA Aço | E26: BDI = | F26: 27.57 | I26: =SUM(I27:I28) -> 11791.12 | J26: =SUM(J27:J28) -> 15039.94
B27: 5.1 | C27: ARM-AÇO-005 | D27: CORTE, DOBRA E ARMAÇÃO DE AÇO CA-50 D <= 12,5 MM | E27: KG | F27: 1541.11 | G27: 7.33 | H27: =ROUND(($K$7/100+1)*G27,2) -> 9.35 | I27: =ROUND(G27*F27,2) -> 11296.34 | J27: =ROUND(H27*F27,2) -> 14409.38
B28: 5.2 | C28: 95445 | D28: CORTE E DOBRA DE AÇO CA-60, DIÂMETRO DE 5,0 MM, UTILIZADO EM ESTRIBO CONTÍNUO HELICOIDAL. AF_10/2016 | E28: KG | F28: 130.55 | G28: 3.79 | H28: 4.83 | I28: =ROUND(G28*F28,2) -> 494.78 | J28: =ROUND(H28*F28,2) -> 630.56
B29: 6 | C29: SINAPI /SETOP | D29: MANILHAS | I29: =SUM(I30:I30) -> 5677.8 | J29: =SUM(J30:J30) -> 7242.6
B30: 6.1 | C30: 92216 | D30: TUBO DE CONCRETO PARA REDES COLETORAS DE ÁGUAS PLUVIAIS, DIÂMETRO DE 1000 MM, JUNTA RÍGIDA, INSTALADO EM LOCAL COM BAIXO NÍVEL DE INTERFERÊNCIAS - FORNECIMENTO E ASSENTAMENTO. AF_12/2015 | E30: M | F30: =5*4 -> 20 | G30: 283.89 | H30: =ROUND(($K$7/100+1)*G30,2) -> 362.13 | I30: =ROUND(G30*F30,2) -> 5677.8 | J30: =ROUND(H30*F30,2) -> 7242.6 | L30: =112000/374.7 -> 298.9057913 | M30: =10*25 -> 250
B31: 7 | C31: SINAPI /SETOP | D31: ESTRUTURA Ombreiras | E31: BDI = | F31: 27.57 | I31: =SUM(I32:I34) -> 4329.18 | J31: =SUM(J32:J34) -> 5522.38
B32: 7.1 | C32: EST-FOR-010 | D32: FORMA E DESFORMA DE COMPENSADO RESINADO ESPESSURA 10 MM, EXCLUSIVE ESCORAMENTO (3X) | E32: M² | F32: =4*3*2*1.2 -> 28.8 | G32: 66.59 | H32: =ROUND(($K$7/100+1)*G32,2) -> 84.94 | I32: =ROUND(G32*F32,2) -> 1917.79 | J32: =ROUND(H32*F32,2) -> 2446.27
B33: 7.2 | C33: 92726 | D33: CONCRETAGEM DE VIGAS E LAJES, FCK=20 MPA, PARA LAJES MACIÇAS OU NERVURADAS COM USO DE BOMBA EM EDIFICAÇÃO COM ÁREA MÉDIA DE LAJES MAIOR QUE 20 M² - LANÇAMENTO, ADENSAMENTO E ACABAMENTO. AF_12/2015 (laje de piso) | E33: M3 | F33: 3.2 | G33: 313.76 | H33: =ROUND(($K$7/100+1)*G33,2) -> 400.23 | I33: =ROUND(G33*F33,2) -> 1004.03 | J33: =ROUND(H33*F33,2) -> 1280.74
B34: 7.3 | C34: ARM-AÇO-005 | D34: CORTE, DOBRA E ARMAÇÃO DE AÇO CA-50 D <= 12,5 MM | E34: Kg | F34: =+F33*60 -> 192 | G34: 7.33 | H34: =G34+(G34*0.2757) -> 9.350881 | I34: 1407.36 | J34: 1795.37
B35: TOTAL GERAL | I35: =I10+I15+I18+I22+I26+I29+I31 -> 79657.96 | J35: =J10+J15+J18+J22+J26+J29+J31 -> 101609.64 | K35: 48320
K36: 39457
K43: =J35-J10 -> 94971.2
K44: =K43+J14 -> 95548.96
K45: =K44*0.05 -> 4777.448
F47: =J35 -> 101609.64 | H47: =F47*0.05 -> 5080.482

Sheet Cronograma
A1: CRONOGRAMA FÍSISCO-FINANCEIRO
A2: CODEVASF | C2: VALOR DO CONVENIO: | E2: =Planilha!J35 -> 101609.64 | H2: DATA: OUTUBRO/2017
C3: =Planilha!C4 -> PASSAGEM MOLHADA RIO SÃO LAMRBEERTO - COMUNIDADE ABÓBORAS | H3: PRAZO: 180 DIAS
A5: ITEM | B5: ETAPAS/DESCRIÇAO | C5: FISICO/ FINANCEIRO | D5: TOTAL ETAPAS | E5: MÊS 1 | F5: MÊS 2 | G5: MÊS 3 | H5: MÊS 4 | I5: MÊS 5 | J5: MÊS 6
A6: 1 | B6: =Planilha!D10 -> SERVIÇOS PRELIMINARES | C6: FISICO | D6: =D7/$E$2 -> 0.06533277748 | E6: 0.5 | F6: 0.25 | G6: 0.25 | L6: =J6+I6+H6+G6+F6+E6 -> 1
C7: FINANCEIRO | D7: =Planilha!J10 -> 6638.44 | E7: =$D$7*E6 -> 3319.22 | F7: =$D$7*F6 -> 1659.61 | G7: 1659.61 | L7: =J7+I7+H7+G7+F7+E7 -> 6638.44
A8: 2 | B8: =Planilha!D15 -> ESCAVAÇÃO E REATERRO | C8: FISICO | D8: =D9/$E$2 -> 0.009961554829 | E8: 0 | F8: 0.75 | G8: 0.25 | L8: =J8+I8+H8+G8+F8+E8 -> 1
C9: FINANCEIRO | D9: =Planilha!J15 -> 1012.19 | E9: =$D$9*E8 -> 0 | F9: =$D$9*F8 -> 759.1425 | G9: 253.0475 | L9: 1012.19
A10: 3 | B10: =Planilha!D18 -> ANCORAGEM | C10: FISICO | D10: =D11/$E$2 -> 0.04732316737 | E10: 1 | F10: 0 | G10: 0 | L10: 1
C11: FINANCEIRO | D11: =Planilha!J18 -> 4808.49 | E11: =$D$11*E10 -> 4808.49 | F11: =$D$11*F10 -> 0 | G11: =$D$11*G10 -> 0 | L11: 4808.49
A12: 4 | B12: =Planilha!D22 -> ESTRUTURA Concreto/forma | C12: FISICO | D12: =D13/$E$2 -> 0.6037379918 | E12: 0.25 | F12: 0.5 | G12: 0.25 | L12: 1
C13: FINANCEIRO | D13: =Planilha!J22 -> 61345.6 | E13: =$D$13*E12 -> 15336.4 | F13: =$D$13*F12 -> 30672.8 | G13: 15336.4 | L13: 61345.6
A14: 5 | B14: =Planilha!D26 -> ESTRUTURA Aço | C14: FISICO | D14: =D15/$E$2 -> 0.1480168614 | E14: 0.25 | F14: 0.5 | G14: 0.25 | L14: =SUM(E14:J14) -> 1
C15: FINANCEIRO | D15: =Planilha!J26 -> 15039.94 | E15: =$D$15*E14 -> 3759.985 | F15: =$D$15*F14 -> 7519.97 | G15: =$D$15*G14 -> 3759.985 | L15: =SUM(E15:K15) -> 15039.94
A16: 6 | B16: =Planilha!D29 -> MANILHAS | C16: FISICO | D16: =D17/$E$2 -> 0.07127867002 | E16: 0 | F16: 1 | G16: 0 | L16: 1
C17: FINANCEIRO | D17: =Planilha!J29 -> 7242.6 | E17: =$D$17*E16 -> 0 | F17: =$D$17*F16 -> 7242.6 | G17: 0 | L17: 7242.6
A18: 7 | B18: =Planilha!D31 -> ESTRUTURA Ombreiras | C18: FISICO | D18: =D19/$E$2 -> 0.05434897712 | E18: 0 | F18: 0.5 | G18: 0.5 | L18: 1
C19: FINANCEIRO | D19: =Planilha!J31 -> 5522.38 | E19: =$D$19*E18 -> 0 | F19: =$D$19*F18 -> 2761.19 | G19: 2761.19 | L19: 5522.38
A20: TOTAL | C20: FISICO | D20: =D21/$E$2 -> 1 | E20: =E21/$E$2 -> 0.2679282694 | F20: =F21/$E$2 -> 0.4981349457 | G20: 0.2339367849 | L20: 1
C21: FINANCEIRO | D21: =D19+D17+D15+D13+D11+D7+D9 -> 101609.64 | E21: =E19+E17+E15+E13+E11+E7 -> 27224.095 | F21: =F19+F17+F15+F13+F11+F7+F9 -> 50615.3125 | G21: =G19+G17+G15+G13+G11+G7+G9 -> 23770.2325 | L21: 101609.64
H23: OBSERVAÇÕES:
B25: ENG: | E25: CREA
B28: PREF:
A29: CRONOGRAMA GERADO AUTOMATICAMENTE COM A PLANILHA

Sheet Para word 1 (hidden)
B3: Meta | C3: 1º mês | D3: 2º mês | E3: 3º mês | F3: 4º mês | G3: 5º mês | H3: 6º mês
B4: 1
B5: 2 | G5: 444984.96
B6: Total | C6: =IF(SUM(C4:C5)=0,"",SUM(C4:C5)) ->  | G6: 444984.96
B8: Meta | C8: 7º mês | D8: 8º mês | E8: 9º mês | F8: 10º mês | G8: 11º mês | H8: 12º mês
B9: 1 | E9: 59132.92
B10: 2 | E10: 613656.59
B11: Total | C11: =IF(SUM(C9:C10)=0,"",SUM(C9:C10)) ->  | E11: 672789.51
B13: Meta | C13: 13º mês | D13: 14º mês | E13: 15º mês | F13: 16º mês | G13: 17º mês | H13: 18º mês
B14: 1 | C14: 205795.67
B15: 2 | C15: 1035623.42 | G15: 101766.97
B16: Total | C16: =IF(SUM(C14:C15)=0,"",SUM(C14:C15)) -> 1241419.09 | G16: 101766.97
B18: Meta | C18: 19º mês | D18: 20º mês | E18: 21º mês | F18: 22º mês
B19: 1
B20: 2 | E20: 39039.47
B21: Total | C21: =IF(SUM(C19:C20)=0,"",SUM(C19:C20)) ->  | E21: 39039.47
B24: Meta | C24: 1º mês | D24: 2º mês | E24: 3º mês | F24: 4º mês | G24: 5º mês | H24: 6º mês
B25: 1
B26: 2
B27: Total | C27: =IF(SUM(C25:C26)=0,"",SUM(C25:C26)) -> 
B29: Meta | C29: 7º mês | D29: 8º mês | E29: 9º mês | F29: 10º mês | G29: 11º mês | H29: 12º mês
B30: 1 | F30: 76681.17
B31: 2 | F31: 190992.63
B32: Total | C32: =IF(SUM(C30:C31)=0,"",SUM(C30:C31)) ->  | F32: 267673.8
B34: Meta | C34: 13º mês | D34: 14º mês | E34: 15º mês | F34: 16º mês | G34: 17º mês | H34: 18º mês
B35: 1 | C35: 54884.37
B36: 2 | C36: 387986.12 | G36: 31805.68
B37: Total | C37: =IF(SUM(C35:C36)=0,"",SUM(C35:C36)) -> 442870.49 | G37: 31805.68
B39: Meta | C39: 19º mês | D39: 20º mês | E39: 21º mês | F39: 22º mês
B40: 1
B41: 2 | E41: 12201.17
B42: Total | C42: =IF(SUM(C40:C41)=0,"",SUM(C40:C41)) ->  | E42: 12201.17

Sheet Para word 2 (hidden)
A1: Meta | B1: Etapa | C1: Especificação | D1: Indicador Físico | F1: Duração
B2: Fase | D2: Unidade | E2: Quant | F2: Início após liberação dos recursos | G2: Término após liberação dos recursos
A3: 1 | B3: 1 | C3: Construção do interceptor do córrego Caeté | K3: 5 | L3: =K3+4 -> 9 | M3: =L3+4 -> 13 | N3: =M3+4 -> 17 | O3: =N3+4 -> 21
B4: 1.1 | C4: Serviços preliminares | D4: GL | E4: 1 | F4: =IF((H4-J4)*30=0,1,(H4-J4)*30) -> 30 | G4: =(I4-J4)*30+30 -> 90 | H4: 10 | I4: 11 | J4: =SUM(K4:P4) -> 9 | K4: =IF(K$3>$H4,0,IF(K$3<=$H4-3,0,K$3)) -> 0 | L4: 9 | M4: 0 | N4: 0 | O4: 0
B5: 1.2 | C5: Movimento de terra | D5: GL | E5: 1 | F5: =IF((H5-J5)*30=0,1,(H5-J5)*30) -> 60 | G5: =(I5-J5)*30+30 -> 120 | H5: 11 | I5: 12 | J5: =SUM(K5:P5) -> 9 | K5: 0 | L5: 9 | M5: 0 | N5: 0 | O5: 0
B6: 1.3 | C6: Estrutura de concreto e escoramento | D6: GL | E6: 1 | F6: =IF((H6-J6)*30=0,1,(H6-J6)*30) -> 360 | G6: =(I6-J6)*30+30 -> 450 | H6: 12 | I6: 14 | J6: =SUM(K6:P6) -> 0 | K6: 0 | L6: 0 | M6: 0 | N6: 0 | O6: 0
B7: 1.4 | C7: Materiais e equipamentos hidráulicos e serviços diversos | D7: GL | E7: 1 | F7: =IF((H7-J7)*30=0,1,(H7-J7)*30) -> 30 | G7: =(I7-J7)*30+30 -> 120 | H7: 14 | I7: 16 | J7: =SUM(K7:P7) -> 13 | K7: 0 | L7: 0 | M7: 13 | N7: 0 | O7: 0
A9: 2 | C9: Construção da ETE
B10: 2.1 | C10: Instalações preliminares | D10: GL | E10: 1 | F10: =IF((H10-J10)*30=0,1,(H10-J10)*30) -> 1 | G10: =(I10-J10)*30+30 -> 30 | H10: 5 | I10: =H10 -> 5 | J10: =SUM(K10:P10) -> 5 | K10: =IF(K$3>$H10,0,IF(K$3<=$H10-3,0,K$3)) -> 5 | L10: =IF(L$3>$H10,0,IF(L$3<=$H10-3,0,L$3)) -> 0 | M10: =IF(M$3>$H10,0,IF(M$3<=$H10-3,0,M$3)) -> 0 | N10: =IF(N$3>$H10,0,IF(N$3<=$H10-3,0,N$3)) -> 0 | O10: =IF(O$3>$H10,0,IF(O$3<=$H10-3,0,O$3)) -> 0
B12: 2.2 | C12: Drenagem
B13: 2.2.1 | C13: Serviços preliminares | D13: GL | E13: 1 | F13: =IF((H13-J13)*30=0,1,(H13-J13)*30) -> 1 | G13: =(I13-J13)*30+30 -> 30 | H13: 5 | I13: 5 | J13: =SUM(K13:P13) -> 5 | K13: =IF(K$3>$H13,0,IF(K$3<=$H13-3,0,K$3)) -> 5 | L13: 0 | M13: 0 | N13: 0 | O13: 0
B14: 2.2.2 | C14: Movimento de terra | D14: GL | E14: 1 | F14: =IF((H14-J14)*30=0,1,(H14-J14)*30) -> 1 | G14: =(I14-J14)*30+30 -> 60 | H14: 5 | I14: 6 | J14: =SUM(K14:P14) -> 5 | K14: 5 | L14: 0 | M14: 0 | N14: 0 | O14: 0
B15: 2.2.3 | C15: Tubulação e caixas | D15: GL | E15: 1 | F15: =IF((H15-J15)*30=0,1,(H15-J15)*30) -> 30 | G15: =(I15-J15)*30+30 -> 60 | H15: 6 | I15: 6 | J15: =SUM(K15:P15) -> 5 | K15: 5 | L15: 0 | M15: 0 | N15: 0 | O15: 0
B17: 2.3 | C17: Terraplenagem
B18: 2.3.1 | C18: Serviços preliminares | D18: GL | E18: 1 | F18: =IF((H18-J18)*30=0,1,(H18-J18)*30) -> 30 | G18: =(I18-J18)*30+30 -> 60 | H18: 6 | I18: =H18 -> 6 | J18: =SUM(K18:P18) -> 5 | K18: =IF(K$3>$H18,0,IF(K$3<=$H18-3,0,K$3)) -> 5 | L18: 0 | M18: 0 | N18: 0 | O18: 0
B19: 2.3.2 | C19: Aterros e cortes | D19: GL | E19: 1 | F19: =IF((H19-J19)*30=0,1,(H19-J19)*30) -> 30 | G19: =(I19-J19)*30+30 -> 90 | H19: 6 | I19: 7 | J19: =SUM(K19:P19) -> 5 | K19: 5 | L19: 0 | M19: 0 | N19: 0 | O19: 0
B21: 2.4 | C21: Estação elevatória
B22: 2.4.1 | C22: Serviços preliminares | D22: GL | E22: 1 | F22: =IF((H22-J22)*30=0,1,(H22-J22)*30) -> 60 | G22: =(I22-J22)*30+30 -> 90 | H22: 7 | I22: =H22 -> 7 | J22: =SUM(K22:P22) -> 5 | K22: =IF(K$3>$H22,0,IF(K$3<=$H22-3,0,K$3)) -> 5 | L22: 0 | M22: 0 | N22: 0 | O22: 0
B23: 2.4.2 | C23: Movimento de terra | D23: GL | E23: 1 | F23: =IF((H23-J23)*30=0,1,(H23-J23)*30) -> 60 | G23: =(I23-J23)*30+30 -> 180 | H23: 7 | I23: 10 | J23: =SUM(K23:P23) -> 5 | K23: 5 | L23: 0 | M23: 0 | N23: 0 | O23: 0
B24: 2.4.3 | C24: Estruturas de concreto | D24: GL | E24: 1 | F24: =IF((H24-J24)*30=0,1,(H24-J24)*30) -> 240 | G24: =(I24-J24)*30+30 -> 330 | H24: 8 | I24: 10 | J24: =SUM(K24:P24) -> 0 | K24: 0 | L24: 0 | M24: 0 | N24: 0 | O24: 0
B25: 2.4.4 | C25: Materiais e equipamentos | D25: GL | E25: 1 | F25: =IF((H25-J25)*30=0,1,(H25-J25)*30) -> 30 | G25: =(I25-J25)*30+30 -> 90 | H25: 10 | I25: 11 | J25: =SUM(K25:P25) -> 9 | K25: 0 | L25: 9 | M25: 0 | N25: 0 | O25: 0
B26: 2.4.5 | C26: Serviços diversos | D26: GL | E26: 1 | F26: =IF((H26-J26)*30=0,1,(H26-J26)*30) -> 60 | G26: =(I26-J26)*30+30 -> 90 | H26: 11 | I26: =H26 -> 11 | J26: =SUM(K26:P26) -> 9 | K26: 0 | L26: 9 | M26: 0 | N26: 0 | O26: 0
B28: 2.5 | C28: Tratamento preliminar
B29: 2.5.1 | C29: Serviços preliminares | D29: GL | E29: 1 | F29: =IF((H29-J29)*30=0,1,(H29-J29)*30) -> 1 | G29: =(I29-J29)*30+30 -> 30 | H29: 9 | I29: =H29 -> 9 | J29: =SUM(K29:P29) -> 9 | K29: =IF(K$3>$H29,0,IF(K$3<=$H29-3,0,K$3)) -> 0 | L29: 9 | M29: 0 | N29: 0 | O29: 0
B30: 2.5.2 | C30: Fundações profundas | D30: GL | E30: 1 | F30: =IF((H30-J30)*30=0,1,(H30-J30)*30) -> 1 | G30: =(I30-J30)*30+30 -> 60 | H30: 9 | I30: 10 | J30: =SUM(K30:P30) -> 9 | K30: 0 | L30: 9 | M30: 0 | N30: 0 | O30: 0
B31: 2.5.3 | C31: Estruturas de concreto | D31: GL | E31: 1 | F31: =IF((H31-J31)*30=0,1,(H31-J31)*30) -> 30 | G31: =(I31-J31)*30+30 -> 120 | H31: 10 | I31: 12 | J31: =SUM(K31:P31) -> 9 | K31: 0 | L31: 9 | M31: 0 | N31: 0 | O31: 0
B32: 2.5.4 | C32: Materiais, equipamentos e serviços diversos | D32: GL | E32: 1 | F32: =IF((H32-J32)*30=0,1,(H32-J32)*30) -> 360 | G32: =(I32-J32)*30+30 -> 420 | H32: 12 | I32: 13 | J32: =SUM(K32:P32) -> 0 | K32: 0 | L32: 0 | M32: 0 | N32: 0 | O32: 0
B34: 2.6 | C34: UASB
B35: 2.6.1 | C35: Serviços preliminares | D35: GL | E35: 1 | F35: =IF((H35-J35)*30=0,1,(H35-J35)*30) -> 60 | G35: =(I35-J35)*30+30 -> 90 | H35: 11 | I35: =H35 -> 11 | J35: =SUM(K35:P35) -> 9 | K35: =IF(K$3>$H35,0,IF(K$3<=$H35-3,0,K$3)) -> 0 | L35: 9 | M35: 0 | N35: 0 | O35: 0
B36: 2.6.2 | C36: Fundações profundas | D36: GL | E36: 1 | F36: =IF((H36-J36)*30=0,1,(H36-J36)*30) -> 60 | G36: =(I36-J36)*30+30 -> 120 | H36: 11 | I36: 12 | J36: =SUM(K36:P36) -> 9 | K36: 0 | L36: 9 | M36: 0 | N36: 0 | O36: 0
B37: 2.6.3 | C37: Estruturas de concreto | D37: GL | E37: 1 | F37: =IF((H37-J37)*30=0,1,(H37-J37)*30) -> 360 | G37: =(I37-J37)*30+30 -> 450 | H37: 12 | I37: 14 | J37: =SUM(K37:P37) -> 0 | K37: 0 | L37: 0 | M37: 0 | N37: 0 | O37: 0
B38: 2.6.4 | C38: Materiais e equipamentos | D38: GL | E38: 1 | F38: =IF((H38-J38)*30=0,1,(H38-J38)*30) -> 30 | G38: =(I38-J38)*30+30 -> 90 | H38: 14 | I38: 15 | J38: =SUM(K38:P38) -> 13 | K38: 0 | L38: 0 | M38: 13 | N38: 0 | O38: 0
B39: 2.6.5 | C39: Serviços diversos | D39: GL | E39: 1 | F39: =IF((H39-J39)*30=0,1,(H39-J39)*30) -> 480 | G39: =(I39-J39)*30+30 -> 510 | H39: 16 | I39: =H39 -> 16 | J39: =SUM(K39:P39) -> 0 | K39: 0 | L39: 0 | M39: 0 | N39: 0 | O39: 0
B41: 2.7 | C41: Leitos de secagem
B42: 2.7.1 | C42: Serviços preliminares | D42: GL | E42: 1 | F42: =IF((H42-J42)*30=0,1,(H42-J42)*30) -> 30 | G42: =(I42-J42)*30+30 -> 60 | H42: 14 | I42: =H42 -> 14 | J42: =SUM(K42:P42) -> 13 | K42: =IF(K$3>$H42,0,IF(K$3<=$H42-3,0,K$3)) -> 0 | L42: 0 | M42: 13 | N42: 0 | O42: 0
B43: 2.7.2 | C43: Estruturas de concreto | D43: GL | E43: 1 | F43: =IF((H43-J43)*30=0,1,(H43-J43)*30) -> 30 | G43: =(I43-J43)*30+30 -> 120 | H43: 14 | I43: 16 | J43: =SUM(K43:P43) -> 13 | K43: 0 | L43: 0 | M43: 13 | N43: 0 | O43: 0
B44: 2.7.3 | C44: Leito filtrante | D44: GL | E44: 1 | F44: =IF((H44-J44)*30=0,1,(H44-J44)*30) -> 480 | G44: =(I44-J44)*30+30 -> 510 | H44: 16 | I44: =H44 -> 16 | J44: =SUM(K44:P44) -> 0 | K44: 0 | L44: 0 | M44: 0 | N44: 0 | O44: 0
B46: 2.8 | C46: Interligação geral
B47: 2.8.1 | C47: Movimento de terra | D47: GL | E47: 1 | F47: =IF((H47-J47)*30=0,1,(H47-J47)*30) -> 480 | G47: =(I47-J47)*30+30 -> 540 | H47: 16 | I47: 17 | J47: =SUM(K47:P47) -> 0 | K47: =IF(K$3>$H47,0,IF(K$3<=$H47-3,0,K$3)) -> 0 | L47: 0 | M47: 0 | N47: 0 | O47: 0
B48: 2.8.2 | C48: Materiais e equipamentos | D48: GL | E48: 1 | F48: =IF((H48-J48)*30=0,1,(H48-J48)*30) -> 480 | G48: =(I48-J48)*30+30 -> 540 | H48: 16 | I48: 17 | J48: =SUM(K48:P48) -> 0 | K48: 0 | L48: 0 | M48: 0 | N48: 0 | O48: 0
B50: 2.9 | C50: Ligação do interceptor
B51: 2.9.1 | C51: Serviços preliminares | D51: GL | E51: 1 | F51: =IF((H51-J51)*30=0,1,(H51-J51)*30) -> 60 | G51: =(I51-J51)*30+30 -> 90 | H51: 15 | I51: =H51 -> 15 | J51: =SUM(K51:P51) -> 13 | K51: =IF(K$3>$H51,0,IF(K$3<=$H51-3,0,K$3)) -> 0 | L51: 0 | M51: 13 | N51: 0 | O51: 0
B52: 2.9.2 | C52: Movimento de terra | D52: GL | E52: 1 | F52: =IF((H52-J52)*30=0,1,(H52-J52)*30) -> 60 | G52: =(I52-J52)*30+30 -> 150 | H52: 15 | I52: 17 | J52: =SUM(K52:P52) -> 13 | K52: 0 | L52: 0 | M52: 13 | N52: 0 | O52: 0
B53: 2.9.3 | C53: Estruturas de concreto | D53: GL | E53: 1 | F53: =IF((H53-J53)*30=0,1,(H53-J53)*30) -> 480 | G53: =(I53-J53)*30+30 -> 540 | H53: 16 | I53: 17 | J53: =SUM(K53:P53) -> 0 | K53: 0 | L53: 0 | M53: 0 | N53: 0 | O53: 0
B54: 2.9.4 | C54: Materiais e equipamentos | D54: GL | E54: 1 | F54: =IF((H54-J54)*30=0,1,(H54-J54)*30) -> 480 | G54: =(I54-J54)*30+30 -> 540 | H54: 16 | I54: 17 | J54: =SUM(K54:P54) -> 0 | K54: 0 | L54: 0 | M54: 0 | N54: 0 | O54: 0
B56: 2.10 | C56: Casa de operação
B57: 2.10.1 | C57: Serviços preliminares | D57: GL | E57: 1 | F57: =IF((H57-J57)*30=0,1,(H57-J57)*30) -> 1 | G57: =(I57-J57)*30+30 -> 30 | H57: 17 | I57: =H57 -> 17 | J57: =SUM(K57:P57) -> 17 | K57: =IF(K$3>$H57,0,IF(K$3<=$H57-3,0,K$3)) -> 0 | L57: 0 | M57: 0 | N57: 17 | O57: 0
B58: 2.10.2 | C58: Fundações | D58: GL | E58: 1 | F58: =IF((H58-J58)*30=0,1,(H58-J58)*30) -> 1 | G58: =(I58-J58)*30+30 -> 30 | H58: 17 | I58: =H58 -> 17 | J58: =SUM(K58:P58) -> 17 | K58: 0 | L58: 0 | M58: 0 | N58: 17 | O58: 0
B59: 2.10.3 | C59: Estruturas e alvenaria | D59: GL | E59: 1 | F59: =IF((H59-J59)*30=0,1,(H59-J59)*30) -> 30 | G59: =(I59-J59)*30+30 -> 90 | H59: 18 | I59: 19 | J59: =SUM(K59:P59) -> 17 | K59: 0 | L59: 0 | M59: 0 | N59: 17 | O59: 0
B60: 2.10.4 | C60: Instalações e acabamentos | D60: GL | E60: 1 | F60: =IF((H60-J60)*30=0,1,(H60-J60)*30) -> 600 | G60: =(I60-J60)*30+30 -> 630 | H60: 20 | I60: =H60 -> 20 | J60: =SUM(K60:P60) -> 0 | K60: 0 | L60: 0 | M60: 0 | N60: 0 | O60: 0
B62: 2.11 | C62: Lançamentos de esgotos
B63: 2.11.1 | C63: Serviços preliminares | D63: GL | E63: 1 | F63: =IF((H63-J63)*30=0,1,(H63-J63)*30) -> 600 | G63: =(I63-J63)*30+30 -> 630 | H63: 20 | I63: =H63 -> 20 | J63: =SUM(K63:P63) -> 0 | K63: =IF(K$3>$H63,0,IF(K$3<=$H63-3,0,K$3)) -> 0 | L63: 0 | M63: 0 | N63: 0 | O63: 0
B64: 2.11.2 | C64: Movimento de terra | D64: GL | E64: 1 | F64: =IF((H64-J64)*30=0,1,(H64-J64)*30) -> 600 | G64: =(I64-J64)*30+30 -> 660 | H64: 20 | I64: 21 | J64: =SUM(K64:P64) -> 0 | K64: 0 | L64: 0 | M64: 0 | N64: 0 | O64: 0
B65: 2.11.3 | C65: Estruturas de concreto | D65: GL | E65: 1 | F65: =IF((H65-J65)*30=0,1,(H65-J65)*30) -> 600 | G65: =(I65-J65)*30+30 -> 660 | H65: 20 | I65: 21 | J65: =SUM(K65:P65) -> 0 | K65: 0 | L65: 0 | M65: 0 | N65: 0 | O65: 0
B66: 2.11.4 | C66: Materiais e equipamentos | D66: GL | E66: 1 | F66: =IF((H66-J66)*30=0,1,(H66-J66)*30) -> 600 | G66: =(I66-J66)*30+30 -> 660 | H66: 20 | I66: 21 | J66: =SUM(K66:P66) -> 0 | K66: 0 | L66: 0 | M66: 0 | N66: 0 | O66: 0
B68: 2.12 | C68: Serviços diversos | D68: GL | E68: 1 | F68: =IF((H68-J68)*30=0,1,(H68-J68)*30) -> 1 | G68: =(I68-J68)*30+30 -> 60 | H68: 21 | I68: 22 | J68: =SUM(K68:P68) -> 21 | K68: =IF(K$3>$H68,0,IF(K$3<=$H68-3,0,K$3)) -> 0 | L68: =IF(L$3>$H68,0,IF(L$3<=$H68-3,0,L$3)) -> 0 | M68: =IF(M$3>$H68,0,IF(M$3<=$H68-3,0,M$3)) -> 0 | N68: =IF(N$3>$H68,0,IF(N$3<=$H68-3,0,N$3)) -> 0 | O68: =IF(O$3>$H68,0,IF(O$3<=$H68-3,0,O$3)) -> 21

Sheet Cron barras (hidden)
C1: 1 | D1: 2 | E1: 3 | F1: 4 | G1: 5 | H1: 6 | I1: 7 | J1: 8 | K1: 9 | L1: 10 | M1: 11 | N1: 12 | O1: 13 | P1: 14 | Q1: 15 | R1: 16 | S1: 17 | T1: 18
C2: 5 | D2: 6 | E2: 7 | F2: 8 | G2: 9 | H2: 10 | I2: 11 | J2: 12 | K2: 13 | L2: 14 | M2: 15 | N2: 16 | O2: 17 | P2: 18 | Q2: 19 | R2: 20 | S2: 21 | T2: 22
A3: 60 | B3: Instalações preliminares
A4: 2 | B4: Tudo | C4: =100-SUM(D4:T4) -> 63 | D4: 2 | E4: 2 | F4: 2 | G4: 2 | H4: 2 | I4: 2 | J4: 2 | K4: 2 | L4: 2 | M4: 2 | N4: 2 | O4: 2 | P4: 2 | Q4: 2 | R4: 2 | S4: 2 | T4: 5
A5: 61 | B5: Drenagem
A6: 4 | B6: Serviços preliminares | C6: 100
A7: 5 | B7: Movimento de terra | C7: 50 | D7: 50
A8: 6 | B8: Tubulação e caixas | D8: 100
A9: 62 | B9: Terraplenagem
A10: 8 | B10: Serviços preliminares | D10: 100
A11: 9 | B11: Cortes e aterros | D11: 50 | E11: 50
A12: 63 | B12: Estação elevatória
A13: 11 | B13: Serviços preliminares | E13: 100
A14: 12 | B14: Movimento de terra | E14: 33 | F14: 33 | H14: 34
A15: 13 | B15: Estruturas de concreto | F15: 33 | G15: 33 | H15: 34
A16: 64 | B16: Materiais e equipamentos | H16: 50 | I16: 50
A17: 15 | B17: Serviços diversos | I17: 100
A18: 65 | B18: Tratamento preliminar
A19: 17 | B19: Serviços preliminares | G19: 100
A20: 18 | B20: Fundações profundas | G20: 50 | H20: 50
A21: 19 | B21: Estruturas de concreto | H21: 33 | I21: 33 | J21: 34
A22: 20 | B22: Materiais e equipamentos | J22: 50 | K22: 50
A23: 66 | B23: UASB
A24: 22 | B24: Serviços preliminares | I24: 100
A25: 23 | B25: Fundações profundas | I25: 50 | J25: 50
A26: 24 | B26: Estruturas de concreto | J26: 33 | K26: 33 | L26: 34
A27: 25 | B27: Materiais e equipamentos | L27: 50 | M27: 50
A28: 26 | B28: Serviços diversos | N28: 100
A29: 67 | B29: Leitos de secagem
A30: 28 | B30: Serviços preliminares | L30: 100
A31: 29 | B31: Estruturas de concreto | L31: 33 | M31: 33 | N31: 34
A32: 30 | B32: Leito filtrante | N32: 100
A33: 68 | B33: Interligação geral
A34: 32 | B34: Movimento de terra | N34: 50 | O34: 50
A35: 33 | B35: Materiais e equipamentos | N35: 50 | O35: 50
A36: 69 | B36: Ligação interceptor
A37: 35 | B37: Serviços preliminares | M37: 100
A38: 36 | B38: Movimento de terra | M38: 33 | N38: 33 | O38: 34
A39: 37 | B39: Estruturas de concreto | N39: 50 | O39: 50
A40: 38 | B40: Materiais e equipamentos | N40: 50 | O40: 50
A41: 70 | B41: Casa de operação
A42: 40 | B42: Serviços preliminares | O42: 100
A43: 41 | B43: Fundações | O43: 100
A44: 42 | B44: Estruturas e alvenaria | P44: 50 | Q44: 50
A45: 43 | B45: Instalações e acabamentos | R45: 100
A46: 71 | B46: Lançamentos
A47: 45 | B47: Serviços preliminares | R47: 100
A48: 46 | B48: Movimento de terra | R48: 50 | S48: 50
A49: 47 | B49: Estruturas de concreto | R49: 50 | S49: 50
A50: 48 | B50: Materiais e equipamentos | R50: 50 | S50: 50
A51: 72 | B51: Serviços diversos
A52: 50 | B52: Tudo | S52: 50 | T52: 50

Sheet Resumo interceptor (hidden)
E2: LOCALIDADE | L2: FOLHA:
F3: CAETÉ / MG - Plano Diretor de Esgotos
E4: DATA BASE: | G4: OBRA / SERVIÇO - UNIDADE DO SISTEMA: | L4: DATA:
F5: 2005-06-01 | G5: RESUMO GERAL
A7: ÍTEM | B7: DESCRIÇÃO | G7: UNID. | H7: OBRAS E MATERIAIS
L8: =IF(J8=0," ",IF(J8=" -"," -",H8*J8)) -> 
C9: RESUMO GERAL
A11: 1 | C11: INTERCEPTOR CÓRREGO CAETÉ - MARGEM DIREITA
A13: 1.1 | C13: Custos referentes a mão-de-obra e equipamentos | G13: gl | L13: ='Interceptor(mão-de-obra)'!L167 -> 131565.5416
A15: 1.2 | C15: Custos referentes a materiais | G15: gl | L15: ='Interceptor (materiais)'!L157 -> 264928.5929
C19: TOTAL GERAL | L19: =SUM(L11:L18) -> 396494.1345
C21: Observações:
C22: 1 - O custo relativo a bonificação e despesas indiretas já esta incluso nos preços.
C23: 2- Os custos referentes a locação de eixo em áreas não planejadas e a todos os ítens
C24: de movimeno de terra são compostos apenas por mão-de-obra e equipamentos.
L36: =IF(J36=0," ",IF(J36=" -"," -",H36*J36)) -> 
A38: DESCRIÇÃO E QUANTITATIVOS POR: | D38: PREÇOS POR:(CARIMBO/RUBRICA) | G38: SETOR RESPONSÁVEL: | I38: OBSERVAÇÕES:

Sheet Interceptor(mão-de-obra) (hidden)
G1: LOCALIDADE: | L1: FOLHA
G2: CAETÉ - MG Plano Diretor de Esgotos
G3: OBRA / SERVIÇO UNIDADE DO SISTEMA | L3: DATA BASE
G4: INTERCEPTOR CÓRREGO CAETÉ - MARGEM DIREITA | L4: 2005-06-01
A6: ÍTEM | B6: DESCRIÇÃO | I6: UNID. | J6: QUANTIDADE | K6: PREÇO UNITÁRIO | L6: VALOR TOTAL | N6: QUANTIDADE | O6: PREÇO UNITÁRIO
A9: 1.1 | B9: INTERCEPTOR CÓRREGO CAETÉ - MARGEM DIREITA | L9: =IF(K9=0," ",IF(K9=" -"," -",J9*K9)) -> 
B11: SERVIÇOS PRELIMINARES
B13: 1 - Locação de eixo em áreas não planejadas | I13: m | J13: 886 | N13: 886 | O13: 1.03
B14: 1.1 - Eng. Agrimensor Senior | I14: mês | J14: =886*0.000144 -> 0.127584 | K14: 3977.6 | L14: 507.4781184
B15: 1.2 - Auxiliar de topografia | I15: mês | J15: =886*0.000288 -> 0.255168 | K15: 648.68 | L15: 165.5223782
B16: 1.3 - Estação total TOPCON GTS-212 ou similar | I16: mês | J16: =886*0.000144 -> 0.127584 | K16: 1733.16 | L16: 221.1234854
B17: 1.4 - Conjunto de equipamentos complementares(trena,baliza,mira e etc.) | I17: mês | J17: =(886*0.000144) -> 0.127584 | K17: 139.01 | L17: 17.73545184
B20: 2 - Ensecadeira (rip-rap) em solo cimento, traço 1:10 | I20: m³ | J20: 400 | L20: =IF(K20=0," ",IF(K20=" -"," -",J20*K20)) ->  | N20: 400 | O20: 100.01
B21: 2.1 - Pedreiro | I21: h | J21: =400*1.12 -> 448 | K21: 5.79 | L21: =IF(K21=0," ",IF(K21=" -"," -",J21*K21)) -> 2593.92
B22: 2.2 - Servente | I22: h | J22: =400*13.611 -> 5444.4 | K22: 3.72 | L22: =IF(K22=0," ",IF(K22=" -"," -",J22*K22)) -> 20253.168
B24: MOVIMENTO DE TERRA
B26: 1 - Escavação manual de valas, em solo seco: | L26: =IF(K26=0," ",IF(K26=" -"," -",J26*K26)) -> 
B27: 1.1 - Profundidade até 1,50 m | I27: m³ | J27: 250 | N27: 16 | O27: 14.47
B28: 1.1.1 - Servente | I28: h | J28: =(250*3.8898) -> 972.45 | K28: 3.72 | L28: 3617.514 | N28: 0.5 | O28: 18.04
B30: 2 - Escavação manual de valas, em solo com água:
B31: 2.1 - Profundidade até 1,50 m | I31: m³ | J31: 370 | N31: 771 | O31: 18.06
B32: 2.1.1 - Servente | I32: h | J32: =(370*4.85484) -> 1796.2908 | K32: 3.72 | L32: 6682.201776 | N32: 0.5 | O32: 18.04
B34: 2.2 - Profundidade maior que 1,50 m até 3,00 m | I34: m³ | J34: 16 | N34: 11 | O34: 22.5
B35: 2.2.1 - Servente | I35: h | J35: =(16*6.0484) -> 96.7744 | K35: 3.72 | L35: 360.000768
A40: DESCRIÇÃO E QUANTITATIVOS POR | E40: PREÇOS POR (CARIMBO/RUBRICA) | I40: SETOR RESPONSÁVEL | K40: OBSERVAÇÕES | O40: OBSERVAÇÕES
L42: =IF(K42=0," ",IF(K42=" -"," -",J42*K42)) -> 
B44: 3. Aterro de valas, com controle do grau de compactação de no mínimo 95%
B45: do proctor normal | I45: m³ | J45: 346 | N45: 510 | O45: 6.2
B46: 3.1 - Servente | I46: h | J46: =346*1.1873 -> 410.8058 | K46: 3.72 | L46: 1528.197576
B47: 3.2 - Ensaio Hilf | I47: u | J47: =346*0.004 -> 1.384 | K47: 62.67 | L47: 86.73528
B48: 3.3 - Compactador manual de solos, motor gasolina | I48: h | J48: =346*0.405485 -> 140.29781 | K48: 3.68 | L48: 516.2959408
B49: 3.4 - Caminhão tanque 10.000 l, motor diesel | I49: h | J49: =346*0.001 -> 0.346 | K49: 40.38 | L49: 13.97148
B52: 4 - Empréstimo e bota-fora: | L52: =IF(K52=0," ",IF(K52=" -"," -",J52*K52)) -> 
L53: =IF(K53=0," ",IF(K53=" -"," -",J53*K53)) -> 
B54: 4.1 - Escavação e carga de material de 1° categoria | I54: m³ | J54: 385 | L54: =IF(K54=0," ",IF(K54=" -"," -",J54*K54)) ->  | N54: 9600 | O54: 1.51
B55: 4.1.1 - Servente | I55: h | J55: =385*0.009948 -> 3.82998 | K55: 3.72 | L55: =IF(K55=0," ",IF(K55=" -"," -",J55*K55)) -> 14.2475256
B56: 4.1.2 - Trator de esteira, motor diesel, 140 HP, D6M | I56: h | J56: =385*0.02 -> 7.7 | K56: 73.65 | L56: =IF(K56=0," ",IF(K56=" -"," -",J56*K56)) -> 567.105
B58: 4.2 - Carga manual (material em geral) sem manuseio e arrumação do material | I58: m³ | J58: 500 | L58: =IF(K58=0," ",IF(K58=" -"," -",J58*K58)) ->  | N58: 1017 | O58: 0.52
B59: 4.2.1 - Servente | I59: h | J59: =500*0.729144 -> 364.572 | K59: 3.72 | L59: =IF(K59=0," ",IF(K59=" -"," -",J59*K59)) -> 1356.20784
B60: 4.2.2 - Caminhão basculante, capacidade 5 m³ (inclusive motorista)-H.Improd. | I60: h | J60: =500*0.0056 -> 2.8 | K60: 15.64 | L60: =IF(K60=0," ",IF(K60=" -"," -",J60*K60)) -> 43.792
B62: 4.3 - Transporte manual (terra, areia, entulho) distância até 100 m | I62: m³ | J62: 500 | L62: =IF(K62=0," ",IF(K62=" -"," -",J62*K62)) ->  | N62: 1017 | O62: 0.72
B63: 4.3.1 - Servente | I63: h | J63: =500*4.551075 -> 2275.5375 | K63: 3.72 | L63: =IF(K63=0," ",IF(K63=" -"," -",J63*K63)) -> 8464.9995
B65: 4.4 - Transporte local, em perímetro urbano (material em geral), a granel | I65: m³ x km | J65: 5000 | L65: =IF(K65=0," ",IF(K65=" -"," -",J65*K65)) ->  | N65: 10170 | O65: 0.78
B66: 4.4.1 - Caminhão basculante, capacidade 5 m³ (inclusive motorista)-H.Prod. | I66: h | J66: =5000*0.02345862 -> 117.2931 | K66: 33.25 | L66: =IF(K66=0," ",IF(K66=" -"," -",J66*K66)) -> 3899.995575
B69: 4.5 - Espalhamento de solo em bota-fora | I69: m³ | J69: 500 | L69: =IF(K69=0," ",IF(K69=" -"," -",J69*K69)) ->  | N69: 1017 | O69: 0.65
B70: 4.5.1 - Trator de esteira, motor diesel, 140 HP, D6M | I70: h | J70: =500*0.0088255 -> 4.41275 | K70: 73.65 | L70: =IF(K70=0," ",IF(K70=" -"," -",J70*K70)) -> 324.9990375
L72: =IF(K72=0," ",IF(K72=" -"," -",J72*K72)) -> 
A75: DESCRIÇÃO E QUANTITATIVOS POR | E75: PREÇOS POR (CARIMBO/RUBRICA) | I75: SETOR RESPONSÁVEL | K75: OBSERVAÇÕES | O75: OBSERVAÇÕES
B79: ESTRUTURAS E CONCRETO | L79: =IF(K79=0," ",IF(K79=" -"," -",J79*K79)) -> 
B81: 1 - Broca de concreto (diâmetro = 30 cm), consumo mínimo de cimento
B82: 150 kg/m³ | I82: m | J82: 344.83 | N82: 345 | O82: 51.8
B83: 1.1 - Servente | I83: h | J83: =344.83*4.1553 -> 1432.872099 | K83: 3.72 | L83: 5330.284208
B84: 1.2 - Betoneira capacidade 320 L, motor diesel 7 HP | I84: h | J84: =344.83*0.4321 -> 149.001043 | K84: 2.37 | L84: 353.1324719
B87: 2 - Formas e desformas:
L88: =IF(K88=0," ",IF(K88=" -"," -",J88*K88)) -> 
B89: 2.1 - Forma plana em tábua de pinho, para fundações | I89: m² | J89: 1009.5 | L89: =IF(K89=0," ",IF(K89=" -"," -",J89*K89)) ->  | N89: 1002 | O89: 21.07
B90: 2.1.1 - Carpinteiro | I90: h | J90: =1009.5*1.494 -> 1508.193 | K90: 5.79 | L90: =IF(K90=0," ",IF(K90=" -"," -",J90*K90)) -> 8732.43747
B91: 2.1.2 - Servente | I91: h | J91: =1009.5*1.4973 -> 1511.52435 | K91: 3.72 | L91: =IF(K91=0," ",IF(K91=" -"," -",J91*K91)) -> 5622.870582
B93: 2.2 - Forma plana em chapa de madeira compensada, para estruturas | I93: m² | J93: 16.86 | L93: =IF(K93=0," ",IF(K93=" -"," -",J93*K93)) ->  | N93: 17 | O93: 34.58
B94: 2.2.1 - Carpinteiro | I94: h | J94: =16.86*1.9724 -> 33.254664 | K94: 5.79 | L94: =IF(K94=0," ",IF(K94=" -"," -",J94*K94)) -> 192.5445046
B95: 2.2.2 - Servente | I95: h | J95: =16.86*1.9731 -> 33.266466 | K95: 3.72 | L95: =IF(K95=0," ",IF(K95=" -"," -",J95*K95)) -> 123.7512535
B97: 2.3 - Forma curva em chapa de madeira compensada resinada, E=10 mm, | L97: =IF(K97=0," ",IF(K97=" -"," -",J97*K97)) -> 
B98: para estruturas | I98: m² | J98: 952.81 | L98: =IF(K98=0," ",IF(K98=" -"," -",J98*K98)) ->  | N98: 477 | O98: 39.29
B99: 2.3.1 - Carpinteiro | I99: h | J99: =952.81*1.9931 -> 1899.045611 | K99: 5.79 | L99: =IF(K99=0," ",IF(K99=" -"," -",J99*K99)) -> 10995.47409
B100: 2.3.2 - Servente | I100: h | J100: =952.81*1.9946 -> 1900.474826 | K100: 3.72 | L100: =IF(K100=0," ",IF(K100=" -"," -",J100*K100)) -> 7069.766353
B103: 3 – Fornecimento e colocação de armadura de aço | I103: kg | J103: 14188 | L103: =IF(K103=0," ",IF(K103=" -"," -",J103*K103)) ->  | N103: 11520 | O103: 4.3
B104: 3.1 - Armador | I104: h | J104: =14188*0.1002 -> 1421.6376 | K104: 5.79 | L104: =IF(K104=0," ",IF(K104=" -"," -",J104*K104)) -> 8231.281704
B105: 3.2 - Auxiliar de oficial | I105: h | J105: =14188*0.0894 -> 1268.4072 | K105: 4.36 | L105: =IF(K105=0," ",IF(K105=" -"," -",J105*K105)) -> 5530.255392
A110: DESCRIÇÃO E QUANTITATIVOS POR | E110: PREÇOS POR (CARIMBO/RUBRICA) | I110: SETOR RESPONSÁVEL | K110: OBSERVAÇÕES | O110: OBSERVAÇÕES
B113: 4 - Concreto - Preparo, transporte, lançamento e adensamento:
B115: 4.1 - Concreto estrutural (fck = 20 MPa) | I115: m³ | J115: 193 | L115: =IF(K115=0," ",IF(K115=" -"," -",J115*K115)) ->  | N115: 192 | O115: 256.13
B116: 4.1.1 - Pedreiro | I116: h | J116: =193*3.4801 -> 671.6593 | K116: 5.79 | L116: 3888.907347
B117: 4.1.2 - Servente | I117: h | J117: =193*15.0134 -> 2897.5862 | K117: 3.72 | L117: 10779.02066
B118: 4.1.3 - Betoneira capacidade 320 L, motor diesel 7 HP | I118: h | J118: =193*2.1983 -> 424.2719 | K118: 2.37 | L118: 1005.524403
B119: 4.1.4 - Vibrador de imersão, motor a gasolina 5 HP | I119: h | J119: =193*5.8868 -> 1136.1524 | K119: 1.06 | L119: 1204.321544
B121: 4.2 - Concreto estrutural (fck = 40 MPa) | I121: m³ | J121: 44 | N121: 44 | O121: 324.22
B122: 4.2.1 - Pedreiro | I122: h | J122: =44*3.4801 -> 153.1244 | K122: 5.79 | L122: 886.590276
B123: 4.2.2 - Servente | I123: h | J123: =44*15.0134 -> 660.5896 | K123: 3.72 | L123: 2457.393312
B124: 4.2.3 - Betoneira capacidade 320 L, motor diesel 7 HP | I124: h | J124: =44*2.1983 -> 96.7252 | K124: 2.37 | L124: 229.238724
B125: 4.2.4 - Vibrador de imersão, motor a gasolina 5 HP | I125: h | J125: =44*5.8868 -> 259.0192 | K125: 1.06 | L125: 274.560352
B127: ESCORAMENTO
L128: =IF(K128=0," ",IF(K128=" -"," -",J128*K128)) -> 
B129: 1 - Estrutura de escoramento contínua | I129: m² | J129: 433 | N129: 420 | O129: 13.77
B130: 1.1 - Carpinteiro | I130: h | J130: =433*0.6079 -> 263.2207 | K130: 5.79 | L130: 1524.047853
B131: 1.2 - Auxiliar de oficial | I131: h | J131: =433*0.241 -> 104.353 | K131: 4.36 | L131: 454.97908
B132: 1.3 - Servente | I132: h | J132: =433*0.5376 -> 232.7808 | K132: 3.72 | L132: 865.944576
B133: 1.4 - Retro escavadeira, motor diesel 74 HP, capacidade da caçamba 0.3 m³ | I133: h | J133: =433*0.0374 -> 16.1942 | K133: 36.63 | L133: 593.193546
B135: MATERIAIS E EQUIPAMENTOS HIDRÁULICOS
L136: =IF(K136=0," ",IF(K136=" -"," -",J136*K136)) -> 
B137: 1 - Tubos de PVC, ponta e bolsa, JE para coletores de esgoto com anel de
B138: borracha, fabricado conforme NBR 7362 - Fornecimento e assentamento:
B140: 1.1 - Diâmetro = 350 mm | I140: m | J140: 574 | N140: 557 | O140: 121.58
B141: 1.1.1 - Bombeiro | I141: h | J141: =574*0.228 -> 130.872 | K141: 5.79 | L141: 757.74888
B142: 1.1.2 - Auxiliar de oficial | I142: h | J142: =574*0.406 -> 233.044 | K142: 4.36 | L142: 1016.07184
A145: DESCRIÇÃO E QUANTITATIVOS POR | E145: PREÇOS POR (CARIMBO/RUBRICA) | I145: SETOR RESPONSÁVEL | K145: OBSERVAÇÕES | O145: OBSERVAÇÕES
B149: 1.2 - Diâmetro = 400 mm | I149: m | J149: 329 | L149: =IF(K149=0," ",IF(K149=" -"," -",J149*K149)) ->  | N149: 319 | O149: 147.02
B150: 1.2.1 - Bombeiro | I150: h | J150: =329*0.2453 -> 80.7037 | K150: 5.79 | L150: =IF(K150=0," ",IF(K150=" -"," -",J150*K150)) -> 467.274423
B151: 1.2.2 - Auxiliar de oficial | I151: h | J151: =329*0.4404 -> 144.8916 | K151: 4.36 | L151: =IF(K151=0," ",IF(K151=" -"," -",J151*K151)) -> 631.727376
B153: 2 - Tubo de concreto armado centrifugado, JE PB EA2 (Esgoto armado) fabri- | L153: =IF(K153=0," ",IF(K153=" -"," -",J153*K153)) -> 
B154: cado conforme NBR 8890, DN 500 mm - Fornecimento e assentamento | I154: m | J154: 10 | L154: =IF(K154=0," ",IF(K154=" -"," -",J154*K154)) ->  | N154: 10 | O154: 138.66
B155: 2.1 - Bombeiro | I155: h | J155: =10*3.5472 -> 35.472 | K155: 5.79 | L155: =IF(K155=0," ",IF(K155=" -"," -",J155*K155)) -> 205.38288
B156: 2.2 - Auxiliar de oficial | I156: h | J156: =10*7.0944 -> 70.944 | K156: 4.36 | L156: =IF(K156=0," ",IF(K156=" -"," -",J156*K156)) -> 309.31584
B159: SERVIÇOS DIVERSOS | L159: =IF(K159=0," ",IF(K159=" -"," -",J159*K159)) -> 
L160: =IF(K160=0," ",IF(K160=" -"," -",J160*K160)) -> 
B161: 1 - Tampão de ferro fundido DN 600 mm - Fornecimento e assentamento | I161: un | J161: 33 | L161: =IF(K161=0," ",IF(K161=" -"," -",J161*K161)) ->  | N161: 33 | O161: 190.02
B162: 1.1 - Pedreiro | I162: h | J162: =33*0.7424 -> 24.4992 | K162: 5.79 | L162: =IF(K162=0," ",IF(K162=" -"," -",J162*K162)) -> 141.850368
B163: 1.2 - Servente | I163: h | J163: =33*3.71 -> 122.43 | K163: 3.72 | L163: =IF(K163=0," ",IF(K163=" -"," -",J163*K163)) -> 455.4396
L166: =IF(K166=0," ",IF(K166=" -"," -",J166*K166)) -> 
B167: TOTAL DO ÍTEM 1.1 | L167: =SUM(L7:L166) -> 131565.5416
A180: DESCRIÇÃO E QUANTITATIVOS POR | E180: PREÇOS POR (CARIMBO/RUBRICA) | I180: SETOR RESPONSÁVEL | K180: OBSERVAÇÕES | O180: OBSERVAÇÕES

Sheet Interceptor (materiais) (hidden)
G1: LOCALIDADE: | L1: FOLHA
G2: CAETÉ - MG Plano Diretor de Esgotos
G3: OBRA / SERVIÇO UNIDADE DO SISTEMA | L3: DATA BASE
G4: INTERCEPTOR CÓRREGO CAETÉ - MARGEM DIREITA | L4: 2005-06-01
A6: ÍTEM | B6: DESCRIÇÃO | I6: UNID. | J6: QUANTIDADE | K6: PREÇO UNITÁRIO | L6: VALOR TOTAL | N6: QUANTIDADE | O6: PREÇO UNITÁRIO
A8: 1.2 | B8: INTERCEPTOR CÓRREGO CAETÉ - MARGEM DIREITA | L8: =IF(K8=0," ",IF(K8=" -"," -",J8*K8)) -> 
L9: =IF(K9=0," ",IF(K9=" -"," -",J9*K9)) -> 
B10: SERVIÇOS PRELIMINARES | L10: =IF(K10=0," ",IF(K10=" -"," -",J10*K10)) -> 
L11: =IF(K11=0," ",IF(K11=" -"," -",J11*K11)) -> 
B12: 1 - Locação de eixo em áreas não planejadas | I12: m | J12: 886 | L12: =IF(K12=0," ",IF(K12=" -"," -",J12*K12)) ->  | N12: 886 | O12: 1.03
B13: Obs.: Este serviço é composta apenas por mão-de-obra e equipamentos
L14: =IF(K14=0," ",IF(K14=" -"," -",J14*K14)) -> 
B15: 2 - Ensecadeira (rip-rap) em solo cimento, traço 1:10 | I15: m³ | J15: 400 | N15: 400 | O15: 100.01
B16: 2.1 - Saco de ráfia 50 x 80 cm | I16: u | J16: =400*36 -> 14400 | K16: 0.58 | L16: =IF(K16=0," ",IF(K16=" -"," -",J16*K16)) -> 8352
B17: 2.2 - Cimento Portland CP 32 II comum | I17: sc | J17: =400*1.42 -> 568 | K17: 15.5 | L17: =IF(K17=0," ",IF(K17=" -"," -",J17*K17)) -> 8804
B19: MOVIMENTO DE TERRA | L19: =IF(K19=0," ",IF(K19=" -"," -",J19*K19)) -> 
B20: Obs.: Todos os serviços referentes a movimento de terra são compostos
B21: apenas por mão-de-obra e equipamentos.
L22: =IF(K22=0," ",IF(K22=" -"," -",J22*K22)) -> 
B23: 1 - Escavação manual de valas, em solo seco:
B24: 1.1 - Profundidade até 1,50 m | I24: m³ | J24: 250 | N24: 16 | O24: 14.47
B26: 2 - Escavação manual de valas, em solo com água:
B27: 2.1 - Profundidade até 1,50 m | I27: m³ | J27: 370 | N27: 771 | O27: 18.06
B28: 2.2 - Profundidade maior que 1,50 m até 3,00 m | I28: m³ | J28: 16 | N28: 11 | O28: 22.5
B30: 3. Aterro de valas, com controle do grau de compactação de no mínimo 95%
B31: do proctor normal | I31: m³ | J31: 346 | N31: 510 | O31: 6.2
B33: 4 - Empréstimo e bota-fora: | L33: =IF(K33=0," ",IF(K33=" -"," -",J33*K33)) -> 
B34: 4.1 - Escavação e carga de material de 1° categoria | I34: m³ | J34: 385 | N34: 9600 | O34: 1.51
B35: 4.2 - Carga manual (material em geral) sem manuseio e arrumação do material | I35: m³ | J35: 500 | N35: 1017 | O35: 0.52
B36: 4.3 - Transporte manual (terra, areia, entulho) distância até 100 m | I36: m³ | J36: 500 | N36: 1017 | O36: 0.72
B37: 4.4 - Transporte local, em perímetro urbano (material em geral), a granel | I37: m³ x km | J37: 5000 | N37: 10170 | O37: 0.78
B38: 4.5 - Espalhamento de solo em bota-fora | I38: m³ | J38: 500 | N38: 1017 | O38: 0.65
A40: DESCRIÇÃO E QUANTITATIVOS POR | E40: PREÇOS POR (CARIMBO/RUBRICA) | I40: SETOR RESPONSÁVEL | K40: OBSERVAÇÕES | O40: OBSERVAÇÕES
B44: ESTRUTURAS E CONCRETO | L44: =IF(K44=0," ",IF(K44=" -"," -",J44*K44)) -> 
L46: =IF(K46=0," ",IF(K46=" -"," -",J46*K46)) -> 
B47: 1 - Broca de concreto (diâmetro = 30 cm), consumo mínimo de cimento
B48: 150 kg/m³ | I48: m | J48: 344.83 | N48: 345 | O48: 51.8
B49: 1.1 - Cimento Portland CP 32 II comum | I49: sc | J49: =344.83*1.1524 -> 397.382092 | K49: 15.5 | L49: 6159.422426
B50: 1.2 - Areia | I50: m³ | J50: =344.83*0.2103 -> 72.517749 | K50: 34.1 | L50: 2472.855241
B51: 1.3 - Brita 1 | I51: m³ | J51: =344.83*0.1642 -> 56.621086 | K51: 31.32 | L51: 1773.372414
B52: 1.4 - Brita 2 | I52: m³ | J52: =344.83*0.1642 -> 56.621086 | K52: 31.32 | L52: 1773.372414
B55: 2 - Formas e desformas:
B58: 2.1 - Forma plana em tábua de pinho, para fundações | I58: m² | J58: 1009.5 | L58: =IF(K58=0," ",IF(K58=" -"," -",J58*K58)) ->  | N58: 1002 | O58: 21.07
B59: 2.1.1 - Prego (18 x 30) | I59: kg | J59: =1009.5*0.1918 -> 193.6221 | K59: 3.91 | L59: 757.062411
B60: 2.1.2 - Tábua em pinho de 3° - 30 x 2,5 cm | I60: m² | J60: =1009.5*0.4884 -> 493.0398 | K60: 9.07 | L60: 4471.870986
B61: 2.1.3 - Pontalete 8 x 8 cm (em madeira de lei) | I61: m | J61: =1009.5*0.4211 -> 425.10045 | K61: 0.95 | L61: 403.8454275
B62: 2.1.4 - Sarrafo de pinho - 10 x 2,5 cm | I62: m | J62: =1009.5*0.3108 -> 313.7526 | K62: 3.7 | L62: 1160.88462
B63: 2.1.5 - Desmoldante para formas | I63: l | J63: =1009.5*0.02 -> 20.19 | K63: 5.99 | L63: 120.9381
B66: 2.2 - Forma plana em chapa de madeira compensada, para estruturas | I66: m² | J66: 16.86 | L66: =IF(K66=0," ",IF(K66=" -"," -",J66*K66)) ->  | N66: 17 | O66: 34.58
B67: 2.2.1 - Prego (18 x 30) | I67: kg | J67: =16.86*0.2839 -> 4.786554 | K67: 3.91 | L67: 18.71542614
B68: 2.2.2 - Madeirit 2,20 x 1,10 m - E = 14 mm (resinado) | I68: u | J68: =16.86*0.3769 -> 6.354534 | K68: 32 | L68: 203.345088
B69: 2.2.3 - Pontalete 8 x 8 cm (em madeira de lei) | I69: m | J69: =16.86*1.0842 -> 18.279612 | K69: 0.95 | L69: 17.3656314
B70: 2.2.4 - Sarrafo de pinho - 10 x 2,5 cm | I70: m | J70: =16.86*0.3946 -> 6.652956 | K70: 3.7 | L70: 24.6159372
B71: 2.2.5 - Desmoldante para formas | I71: l | J71: =16.86*0.0267 -> 0.450162 | K71: 5.99 | L71: 2.69647038
A75: DESCRIÇÃO E QUANTITATIVOS POR | E75: PREÇOS POR (CARIMBO/RUBRICA) | I75: SETOR RESPONSÁVEL | K75: OBSERVAÇÕES | O75: OBSERVAÇÕES
B79: 2.3 - Forma curva em chapa de madeira compensada resinada, E=10 mm, | L79: =IF(K79=0," ",IF(K79=" -"," -",J79*K79)) -> 
B80: para estruturas | I80: m² | J80: 952.81 | N80: 477 | O80: 39.29
B81: 2.3.1 - Prego (18 x 30) | I81: kg | J81: =952.81*0.3018 -> 287.558058 | K81: 3.91 | L81: 1124.352007
B82: 2.3.2 - Tábua em pinho de 3° - 30 x 2,5 cm | I82: m² | J82: =952.81*0.1918 -> 182.748958 | K82: 9.07 | L82: 1657.533049
B83: 2.3.3 - Pontalete 8 x 8 cm (em madeira de lei) | I83: m | J83: =952.81*0.3579 -> 341.010699 | K83: 0.95 | L83: 323.960164
B84: 2.3.4 - Sarrafo de pinho - 10 x 2,5 cm | I84: m | J84: =952.81*0.4189 -> 399.132109 | K84: 3.7 | L84: 1476.788803
B85: 2.3.5 - Madeirit 2,20 x 1,10 m - E = 6 mm | I85: u | J85: =952.81*0.2065 -> 196.755265 | K85: 13.9 | L85: 2734.898183
B86: 2.3.6 - Madeirit 2,20 x 1,10 m - E = 14 mm (resinado) | I86: u | J86: =952.81*0.3953 -> 376.645793 | K86: 32 | L86: 12052.66538
L88: =IF(K88=0," ",IF(K88=" -"," -",J88*K88)) -> 
B89: 3 – Fornecimento e colocação de armadura de aço | I89: kg | J89: 14188 | L89: =IF(K89=0," ",IF(K89=" -"," -",J89*K89)) ->  | N89: 11520 | O89: 4.3
B90: 3.1 - Aço CA-50 A ou B | I90: T | J90: =14188*0.00101 -> 14.32988 | K90: 2911.23 | L90: =IF(K90=0," ",IF(K90=" -"," -",J90*K90)) -> 41717.57655
L92: =IF(K92=0," ",IF(K92=" -"," -",J92*K92)) -> 
B93: 4 - Concreto - Preparo, transporte, lançamento e adensamento:
B95: 4.1 - Concreto estrutural (fck = 20 MPa) | I95: m³ | J95: 193 | L95: =IF(K95=0," ",IF(K95=" -"," -",J95*K95)) ->  | N95: 192 | O95: 256.13
B96: 4.1.1 - Cimento Portland CP 32 II comum | I96: sc | J96: =193*7.5316 -> 1453.5988 | K96: 15.5 | L96: =IF(K96=0," ",IF(K96=" -"," -",J96*K96)) -> 22530.7814
B97: 4.1.2 - Areia | I97: m³ | J97: =193*0.8012 -> 154.6316 | K97: 34.1 | L97: =IF(K97=0," ",IF(K97=" -"," -",J97*K97)) -> 5272.93756
B98: 4.1.3 - Brita 1 | I98: m³ | J98: =193*0.393 -> 75.849 | K98: 31.32 | L98: =IF(K98=0," ",IF(K98=" -"," -",J98*K98)) -> 2375.59068
B99: 4.1.4 - Brita 2 | I99: m³ | J99: =193*0.393 -> 75.849 | K99: 31.32 | L99: =IF(K99=0," ",IF(K99=" -"," -",J99*K99)) -> 2375.59068
B101: 4.2 - Concreto estrutural (fck = 40 MPa) | I101: m³ | J101: 44 | L101: =IF(K101=0," ",IF(K101=" -"," -",J101*K101)) ->  | N101: 44 | O101: 324.22
B102: 4.2.1 - Cimento Portland CP 32 II comum | I102: sc | J102: =44*11.9245 -> 524.678 | K102: 15.5 | L102: =IF(K102=0," ",IF(K102=" -"," -",J102*K102)) -> 8132.509
B103: 4.2.2 - Areia | I103: m³ | J103: =44*0.8012 -> 35.2528 | K103: 34.1 | L103: =IF(K103=0," ",IF(K103=" -"," -",J103*K103)) -> 1202.12048
B104: 4.2.3 - Brita 1 | I104: m³ | J104: =44*0.393 -> 17.292 | K104: 31.32 | L104: =IF(K104=0," ",IF(K104=" -"," -",J104*K104)) -> 541.58544
B105: 4.2.4 - Brita 2 | I105: m³ | J105: =44*0.393 -> 17.292 | K105: 31.32 | L105: =IF(K105=0," ",IF(K105=" -"," -",J105*K105)) -> 541.58544
A110: DESCRIÇÃO E QUANTITATIVOS POR | E110: PREÇOS POR (CARIMBO/RUBRICA) | I110: SETOR RESPONSÁVEL | K110: OBSERVAÇÕES | O110: OBSERVAÇÕES
B114: ESCORAMENTO | L114: =IF(K114=0," ",IF(K114=" -"," -",J114*K114)) -> 
B116: 1 - Estrutura de escoramento contínua | I116: m² | J116: 433 | N116: 420 | O116: 13.77
B117: 1.1 - Escora de eucalipto, sem tratamento, diâmetro mínimo = 12 cm | I117: m | J117: =433*0.0357 -> 15.4581 | K117: 1.4 | L117: 21.64134
B118: 1.2 - Pranchão - 30 x 4 cm - em madeira de lei | I118: m² | J118: =433*0.1571 -> 68.0243 | K118: 25.5 | L118: 1734.61965
B119: 1.3 - Viga em madeira de lei - 15 x 7,5 cm | I119: m | J119: =433*0.1564 -> 67.7212 | K119: 8.63 | L119: 584.433956
B120: 1.4 - Prego (18 x 30) | I120: kg | J120: =433*0.1074 -> 46.5042 | K120: 3.91 | L120: 181.831422
B123: MATERIAIS E EQUIPAMENTOS HIDRÁULICOS | L123: =IF(K123=0," ",IF(K123=" -"," -",J123*K123)) -> 
L125: =IF(K125=0," ",IF(K125=" -"," -",J125*K125)) -> 
B126: 1 - Tubos de PVC, ponta e bolsa, JE para coletores de esgoto com anel de
B127: borracha, fabricado conforme NBR 7362 - Fornecimento e assentamento:
B129: 1.1 - Diâmetro = 350 mm | I129: m | J129: 574 | N129: 557 | O129: 121.58
B130: 1.1.1 - Tubo de PVC, PB, JE, fabricado conforme NBR 7362 - DN 350 mm | I130: m | J130: 574 | K130: 118.49 | L130: 68013.26
B133: 1.2 - Diâmetro = 400 mm | I133: m | J133: 329 | L133: =IF(K133=0," ",IF(K133=" -"," -",J133*K133)) ->  | N133: 319 | O133: 147.02
B134: 1.2.1 - Tubo de PVC, PB, JE, fabricado conforme NBR 7362 - DN 400 mm | I134: m | J134: 329 | K134: 143.68 | L134: =IF(K134=0," ",IF(K134=" -"," -",J134*K134)) -> 47270.72
L136: =IF(K136=0," ",IF(K136=" -"," -",J136*K136)) -> 
B137: 2 - Tubo de concreto armado centrifugado, JE PB EA2 (Esgoto armado) fabri- | L137: =IF(K137=0," ",IF(K137=" -"," -",J137*K137)) -> 
B138: cado conforme NBR 8890, DN 500 mm - Fornecimento e assentamento | I138: m | J138: 10 | L138: =IF(K138=0," ",IF(K138=" -"," -",J138*K138)) ->  | N138: 10 | O138: 138.66
B139: 2.1.1 - Tubo de concreto armado centrifugado, JE PB EA2 (Esgoto armado) | L139: =IF(K139=0," ",IF(K139=" -"," -",J139*K139)) -> 
B140: fabricado conforme NBR 8890, DN 500 mm | I140: m | J140: 10 | K140: 87.19 | L140: =IF(K140=0," ",IF(K140=" -"," -",J140*K140)) -> 871.9
A145: DESCRIÇÃO E QUANTITATIVOS POR | E145: PREÇOS POR (CARIMBO/RUBRICA) | I145: SETOR RESPONSÁVEL | K145: OBSERVAÇÕES | O145: OBSERVAÇÕES
B149: SERVIÇOS DIVERSOS | L149: =IF(K149=0," ",IF(K149=" -"," -",J149*K149)) -> 
B151: 1 - Tampão de ferro fundido DN 600 mm - Fornecimento e assentamento | I151: un | J151: 33 | N151: 33 | O151: 190.02
B152: 1.1 - Cimento Portland CP 32 II comum | I152: sc | J152: =33*0.0871 -> 2.8743 | K152: 15.5 | L152: 44.55165
B153: 1.2 - Areia | I153: m³ | J153: =33*0.0082 -> 0.2706 | K153: 34.1 | L153: 9.22746
B154: 1.3 - Tampão de ferro fundido DN 600 | I154: un | J154: =33*1 -> 33 | K154: 170.29 | L154: 5619.57
L156: =IF(K156=0," ",IF(K156=" -"," -",J156*K156)) -> 
B157: TOTAL DO ÍTEM 1.2 | L157: =SUM(L7:L156) -> 264928.5929
A180: DESCRIÇÃO E QUANTITATIVOS POR | E180: PREÇOS POR (CARIMBO/RUBRICA) | I180: SETOR RESPONSÁVEL | K180: OBSERVAÇÕES | O180: OBSERVAÇÕES

Sheet CPU (hidden)
A1: CODEVASF | B1: COMPOSIÇÃO DE PREÇO UNITÁRIO
A2: OBRA: | G2: DATA:
A3: SERVIÇO :Mobilização/Desmobilização de equipamentos e pessoal | G3: UNIDADE: | H3: gl
A4: EQUIPAMENTO
A5: DISCRIMINAÇÃO | B5: UNIDADE | C5: QUANT. | D5: PROD | E5: IMPROD | F5: P.UNIT. PROD | G5: P.UNIT. IMPR | H5: P.TOTAL
A6: Caminhão com carroceria fixa e guindauto para içamento de carga de até 5,5 ton.(inclusive motorista) | B6: h | C6: 20 | D6: 1 | F6: =(120+117.89)/2 -> 118.945 | G6: 13.3904 | H6: =C6*D6*F6+C6*E6*G6 -> 2378.9
A7: SUB-TOTAL | H7: =SUM(H6:H6) -> 2378.9
A8: MATERIAL
A9: DISCRIMINAÇÃO | B9: UNIDADE | C9: QUANT. | G9: P.UNIT. | H9: P.TOTAL
A10: Passagem de ônibus | B10: unid. | C10: 2 | G10: 80 | H10: =C10*G10 -> 160
H11: =C11*G11 -> 0
A12: SUB-TOTAL | H12: =SUM(H10:H11) -> 160
A13: SERVIÇOS - COMPOSIÇÕES AUXILIARES
A14: DISCRIMINAÇÃO | B14: UNIDADE | C14: QUANT. | G14: P.UNIT. | H14: P.TOTAL
H15: =C15*G15 -> 0
A16: SUB-TOTAL | H16: =SUM(H15:H15) -> 0
A17: MÃO DE OBRA
A18: DISCRIMINAÇÃO | B18: UNIDADE | C18: QUANT. | G18: P.UNIT. | H18: P.TOTAL
H19: =C19*G19 -> 0
H20: =C20*G20 -> 0
A21: SUB-TOTAL | H21: =SUM(H19:H20) -> 0
A22: PRODUÇÃO DA EQUIPE | B22: 1 | C22: CUSTO | H22: =H21+H16+H12+H7 -> 2538.9
A23: TOTAL | H23: =H22/B22 -> 2538.9
A24: BDI % | H24: 1.25
A25: TOTAL DO SERVIÇO - R$ | H25: =H23*H24 -> 3173.625
A26: CODEVASF | B26: COMPOSIÇÃO DE PREÇO UNITÁRIO
A27: OBRA: | G27: DATA:
A28: SERVIÇO :Administração local | G28: UNIDADE: | H28: GL
A29: EQUIPAMENTO
A30: DISCRIMINAÇÃO | B30: UNIDADE | C30: QUANT. | D30: PROD | E30: IMPROD | F30: P.UNIT. PROD | G30: P.UNIT. IMPR | H30: P.TOTAL
H31: =C31*D31*F31+C31*E31*G31 -> 0
A32: SUB-TOTAL | H32: =SUM(H31:H31) -> 0
A33: MATERIAL
A34: DISCRIMINAÇÃO | B34: UNIDADE | C34: QUANT. | G34: P.UNIT. | H34: P.TOTAL
H35: =C35*G35 -> 0
H36: =C36*G36 -> 0
H37: =C37*G37 -> 0
A38: SUB-TOTAL | H38: =SUM(H35:H37) -> 0
A39: SERVIÇOS - COMPOSIÇÕES AUXILIARES
A40: DISCRIMINAÇÃO | B40: UNIDADE | C40: QUANT. | G40: P.UNIT. | H40: P.TOTAL
H41: =C41*G41 -> 0
A42: SUB-TOTAL | H42: =SUM(H41:H41) -> 0
A43: MÃO DE OBRA
A44: DISCRIMINAÇÃO | B44: UNIDADE | C44: QUANT. | G44: P.UNIT. | H44: P.TOTAL
A45: Mestre de obra | B45: gl | C45: 0.17 | G45: 18484.42 | H45: =C45*G45 -> 3142.3514
A46: SUB-TOTAL | H46: =SUM(H45:H45) -> 3142.3514
A47: PRODUÇÃO DA EQUIPE | B47: 1 | C47: CUSTO | H47: =H46+H42+H38+H32 -> 3142.3514
A48: TOTAL | H48: =H47/B47 -> 3142.3514
A49: BDI % | H49: 1
A50: TOTAL DO SERVIÇO - R$ | H50: =H48*H49 -> 3142.3514
A51: CODEVASF | B51: COMPOSIÇÃO DE PREÇO UNITÁRIO
A52: OBRA: | G52: DATA:
A53: SERVIÇO :Acerto e verificação do nivelamento de fundo de valas | G53: UNIDADE: | H53: m3
A54: EQUIPAMENTO
A55: DISCRIMINAÇÃO | B55: UNIDADE | C55: QUANT. | D55: PROD | E55: IMPROD | F55: P.UNIT. PROD | G55: P.UNIT. IMPR | H55: P.TOTAL
H56: =C56*D56*F56+C56*E56*G56 -> 0
A57: SUB-TOTAL | H57: =SUM(H56:H56) -> 0
A58: MATERIAL
A59: DISCRIMINAÇÃO | B59: UNIDADE | C59: QUANT. | G59: P.UNIT. | H59: P.TOTAL
H60: =C60*G60 -> 0
A61: SUB-TOTAL | H61: =SUM(H60:H60) -> 0
A62: SERVIÇOS - COMPOSIÇÕES AUXILIARES
A63: DISCRIMINAÇÃO | B63: UNIDADE | C63: QUANT. | G63: P.UNIT. | H63: P.TOTAL
H64: =C64*G64 -> 0
A65: SUB-TOTAL | H65: =SUM(H64:H64) -> 0
A66: MÃO DE OBRA
A67: DISCRIMINAÇÃO | B67: UNIDADE | C67: QUANT. | G67: P.UNIT. | H67: P.TOTAL
A68: Pedreiro | B68: h | C68: 0.08 | G68: 14.81 | H68: =C68*G68 -> 1.1848
A69: Servente | B69: h | C69: 0.48 | G69: 12.35 | H69: =C69*G69 -> 5.928
A70: SUB-TOTAL | H70: =SUM(H68:H69) -> 7.1128
A71: PRODUÇÃO DA EQUIPE | B71: 1 | C71: CUSTO | H71: =H70+H65+H61+H57 -> 7.1128
A72: TOTAL - R$ | H72: =H71/B71 -> 7.1128
A73: BDI % | H73: 1
A74: TOTAL DO SERVIÇO - R$ | H74: =H72*H73 -> 7.1128
A75: CODEVASF | B75: COMPOSIÇÃO DE PREÇO UNITÁRIO
A76: OBRA: | G76: DATA:
A77: SERVIÇO :Execução de bloco de ancoragem com fixação de gabarito metálico, base em chapa metálica e parafuso de arranque | G77: UNIDADE: | H77: unid.
A78: EQUIPAMENTO
A79: DISCRIMINAÇÃO | B79: UNIDADE | C79: QUANT. | D79: PROD | E79: IMPROD | F79: P.UNIT. PROD | G79: P.UNIT. IMPR | H79: P.TOTAL
H80: =C80*D80*F80+C80*E80*G80 -> 0
A81: SUB-TOTAL | H81: =SUM(H80:H80) -> 0
A82: MATERIAL
A83: DISCRIMINAÇÃO | B83: UNIDADE | C83: QUANT. | G83: P.UNIT. | H83: P.TOTAL
A84: CHAPA ACO GROSSA PRETA 1/2"(12,70MM) 99,593KG/M2 - 1333 | B84: kg | C84: 3 | G84: 3.85 | H84: =C84*G84 -> 11.55
A85: CHUMBADOR DE ACO 1" X 500MM C/ ROSCA E PORCA - 13278 | B85: kg | C85: 2 | G85: 56.2 | H85: =C85*G85 -> 112.4
A86: SUB-TOTAL | H86: =SUM(H84:H85) -> 123.95
A87: SERVIÇOS - COMPOSIÇÕES AUXILIARES
A88: DISCRIMINAÇÃO | B88: UNIDADE | C88: QUANT. | G88: P.UNIT. | H88: P.TOTAL
A89: CONCRETO FCK=25MPA, VIRADO EM BETONEIRA, SEM LANCAMENTO - 73972/001 | B89: m³ | C89: 0.5 | G89: 327.81 | H89: =ROUND(C89*G89,2) -> 163.91
A90: LANCAMENTO/APLICACAO MANUAL DE CONCRETO EM ESTRUTURAS - 74157/003 | B90: m³ | C90: =C89 -> 0.5 | G90: 84.02 | H90: =ROUND(C90*G90,2) -> 42.01
A91: FORMA PARA ESTRUTURAS DE CONCRETO (PILAR, VIGA E LAJE) EM CHAPA DE MADEIRA COMPENSADA RESINADA, DE 1,10 X 2,20, ESPESSURA = 12 MM, 03 UTILIZACOES. (FABRICACAO, MONTAGEM E DESMONTAGEM) | B91: m² | C91: 2.617 | G91: 37.78 | H91: =ROUND(C91*G91,2) -> 98.87
H92: =C92*G92 -> 0
A93: SUB-TOTAL | H93: =SUM(H89:H92) -> 304.79
A94: MÃO DE OBRA
A95: DISCRIMINAÇÃO | B95: UNIDADE | C95: QUANT. | G95: P.UNIT. | H95: P.TOTAL
A96: Oficial | B96: h | C96: 0.5 | G96: 48.32 | H96: =C96*G96 -> 24.16
A97: Pedreiro | B97: h | C97: 2 | G97: 14.81 | H97: =C97*G97 -> 29.62
A98: Servente | B98: h | C98: 3 | G98: 10.78 | H98: =C98*G98 -> 32.34
A99: SUB-TOTAL | H99: =SUM(H96:H98) -> 86.12
A100: PRODUÇÃO DA EQUIPE | B100: 1 | C100: CUSTO | H100: =H99+H93+H86+H81 -> 514.86
A101: TOTAL - R$ | H101: =H100/B100 -> 514.86
A102: BDI % | H102: 1
A103: TOTAL DO SERVIÇO - R$ | H103: =H101*H102 -> 514.86
C106: =0.3*0.3*99.593 -> 8.96337

Sheet BDI-Serviços (hidden)
B2: DETALHAMENTO DO BDI - SERVIÇOS
B5: Item | C5: Descrição dos Serviços | D5: % | E5: %
D6: PV | E6: CD
B8: 1 | C8: ADMINISTRAÇÃO CENTRAL | E8: 8
B9: 1.1 | C9: ESCRITÓRIO CENTRAL
B10: 1.2 | C10: VIAGENS
B11: 1.3 | C11: OUTROS
B13: 2 | C13: IMPOSTOS E TAXAS | D13: =SUM(D14:D17) -> 8.65 | E13: =SUM(E14:E17) -> 10.82
B14: 2.1 | C14: ISS | D14: 5 | E14: =ROUND(D14*1.2515,2) -> 6.26
B15: 2.2 | C15: PIS | D15: 0.65 | E15: =ROUND(D15*1.2515,2) -> 0.81
B16: 2.3 | C16: Cofins | D16: 3 | E16: =ROUND(D16*1.2515,2) -> 3.75
B17: 2.4 | C17: CONTRIBUIÇÃO PREVIDENCIÁRIA SOBRE A RENDA BRUTA | D17: 0 | E17: =ROUND(D17*1.2515,2) -> 0
B19: 3 | C19: TAXA DE RISCO | E19: =SUM(E20:E23) -> 0.87
B20: 3.1 | C20: SEGURO | E20: 0.29
B21: 3.2 | C21: RISCO | E21: 0.29
B22: 3.3 | C22: GARANTIA | E22: 0.29
B24: 4 | C24: DESPESAS FINANCEIRAS | E24: 0.975
B26: 5 | C26: LUCRO | E26: 6
C28: BDI - CALCULADO | E28: =ROUND((((1+(E8+E19)/100)*(1+E24/100)*(1+E26/100)/(1-D13/100)-1)*100),2) -> 27.56
B31: BDI = ((1+((AC+S+R+G)/100))x(1+DF/100)x(1+L/100)/(1-I/100)-1)*100
B33: BDI (CALCULADO): | D33: =ROUND((((1+((E8+E19)/100))*(1+E24/100)*(1+E26/100))/(1-D13/100)-1)*100,2) -> 27.56
B35: Para o preenchimento da proposta deve-se utilizar o valor de ISS da Prefeitura Local.
B37: BDI EM CONFORMIDADE COM OS ACÓRDÃOS Nº 2369/2011 e ACÓRDÃO Nº 2.622/2013 - TCU - PLENÁRIO
B40: DETALHAMENTO DO BDI - FORNECIMENTO
B44: Item | C44: Descrição dos Serviços | D44: % | E44: %
D45: PV | E45: CD
B47: 1 | C47: ADMINISTRAÇÃO CENTRAL | E47: 5
B48: 1.1 | C48: ESCRITÓRIO CENTRAL
B49: 1.2 | C49: VIAGENS
B50: 1.3 | C50: OUTROS
B52: 2 | C52: IMPOSTOS E TAXAS | D52: =SUM(D53:D55) -> 3.65 | E52: =SUM(E53:E56) -> 4.31
B53: 2.1 | C53: ISS | D53: 0 | E53: 0
B54: 2.2 | C54: PIS | D54: 0.65 | E54: =ROUND(D54*1.18,2) -> 0.77
B55: 2.3 | C55: Cofins | D55: 3 | E55: =ROUND(D55*1.18,2) -> 3.54
B56: 2.4 | C56: CONTRIBUIÇÃO PREVIDENCIÁRIA SOBRE A RENDA BRUTA | D56: 0 | E56: =ROUND(D56*1.18,2) -> 0
B58: 3 | C58: TAXA DE RISCO | E58: =SUM(E59:E62) -> 0.67
B59: 3.1 | C59: SEGURO | E59: 0.2
B60: 3.2 | C60: RISCO | E60: 0.21
B61: 3.3 | C61: GARANTIA | E61: 0.26
B63: 4 | C63: DESPESAS FINANCEIRAS | E63: 0.55
B65: 5 | C65: LUCRO | E65: 6
C67: BDI - CALCULADO | E67: =ROUND((((1+(E47+E58)/100)*(1+E63/100)*(1+E65/100)/(1-D52/100)-1)*100),2) -> 16.89
B70: BDI = ((1+((AC+S+R+G)/100))x(1+DF/100)x(1+L/100)/(1-I/100)-1)*100
B72: BDI (CALCULADO): | D72: =ROUND((((1+((E47+E58)/100))*(1+E63/100)*(1+E65/100))/(1-D52/100)-1)*100,2) -> 16.89
B74: Para o preenchimento da proposta deve-se utilizar o valor de ISS da Prefeitura Local.
B76: BDI EM CONFORMIDADE COM OS ACÓRDÃOS Nº 2369/2011 e ACÓRDÃO Nº 2.622/2013 - TCU - PLENÁRIO

Sheet BDI-Fornecimento (hidden)
B2: DETALHAMENTO DO BDI - FORNECIMENTO
B6: Item | C6: Descrição dos Serviços | D6: % | E6: %
D7: PV | E7: CD
B9: 1 | C9: ADMINISTRAÇÃO CENTRAL | E9: 5
B10: 1.1 | C10: ESCRITÓRIO CENTRAL
B11: 1.2 | C11: VIAGENS
B12: 1.3 | C12: OUTROS
B14: 2 | C14: IMPOSTOS E TAXAS | D14: =SUM(D15:D17) -> 3.65 | E14: =SUM(E15:E18) -> 4.31
B15: 2.1 | C15: ISS | D15: 0 | E15: 0
B16: 2.2 | C16: PIS | D16: 0.65 | E16: =ROUND(D16*1.18,2) -> 0.77
B17: 2.3 | C17: Cofins | D17: 3 | E17: =ROUND(D17*1.18,2) -> 3.54
B18: 2.4 | C18: CONTRIBUIÇÃO PREVIDENCIÁRIA SOBRE A RENDA BRUTA | D18: 0 | E18: =ROUND(D18*1.18,2) -> 0
B20: 3 | C20: TAXA DE RISCO | E20: =SUM(E21:E24) -> 0.67
B21: 3.1 | C21: SEGURO | E21: 0.2
B22: 3.2 | C22: RISCO | E22: 0.21
B23: 3.3 | C23: GARANTIA | E23: 0.26
B25: 4 | C25: DESPESAS FINANCEIRAS | E25: 0.55
B27: 5 | C27: LUCRO | E27: 6
C29: BDI - CALCULADO | E29: =ROUND((((1+(E9+E20)/100)*(1+E25/100)*(1+E27/100)/(1-D14/100)-1)*100),2) -> 16.89
B32: BDI = ((1+((AC+S+R+G)/100))x(1+DF/100)x(1+L/100)/(1-I/100)-1)*100
B34: BDI (CALCULADO): | D34: =ROUND((((1+((E9+E20)/100))*(1+E25/100)*(1+E27/100))/(1-D14/100)-1)*100,2) -> 16.89
B36: Para o preenchimento da proposta deve-se utilizar o valor de ISS da Prefeitura Local.
B38: BDI EM CONFORMIDADE COM OS ACÓRDÃOS Nº 2369/2011 e ACÓRDÃO Nº 2.622/2013 - TCU - PLENÁRIO
